bitfinex-derivatives/quotes_BTCF0:USTF0_20250602
["timestamp","ask_amount","ask_price","bid_price","bid_amount"]
[1748833112166,0.1901999,105110.0,105100.0,0.07309324]
[1748833112361,1.28912957,105110.0,105100.0,0.07309324]
[1748833112666,1.28938084,105110.0,105100.0,0.07309324]
[1748833113079,1.83190084,105110.0,105100.0,0.07309324]
[1748833113264,1.83290084,105110.0,105100.0,0.07509324]
[1748833113669,1.77475055,105110.0,105100.0,0.07609324]
[1748833113858,1.77475055,105110.0,105100.0,0.08084324]
[1748833114061,1.78442583,105110.0,105100.0,0.08084324]
[1748833115861,1.83246777,105110.0,105100.0,0.08084324]
[1748833117066,1.83246777,105110.0,105100.0,0.01484324]
[1748833117267,1.83246777,105110.0,105100.0,0.00880587]
[1748833117467,1.68438945,105110.0,105100.0,0.00880587]
[1748833117655,1.68438945,105110.0,105100.0,0.07050587]
[1748833118258,1.89178779,105110.0,105100.0,0.07050587]
[1748833119259,1.77598673,105110.0,105100.0,0.07050587]
[1748833119464,1.89178779,105110.0,105100.0,7e-08]
[1748833120069,2.25258779,105110.0,105100.0,7e-08]
[1748833121067,2.29752367,105110.0,105100.0,7e-08]
[1748833121273,2.40068367,105110.0,105100.0,7e-08]
[1748833121473,2.19328533,105110.0,105100.0,7e-08]
[1748833121770,2.19328533,105110.0,105100.0,0.03505007]
[1748833122771,2.19328533,105110.0,105100.0,0.09565007]
[1748833124265,2.07748427,105110.0,105100.0,0.09565007]
[1748833124465,2.19328533,105110.0,105100.0,0.09565007]
[1748833125074,2.07748427,105110.0,105100.0,0.09565007]
[1748833125275,1.61930533,105110.0,105100.0,0.09565007]
[1748833125569,1.61930533,105110.0,105100.0,0.21145113]
[1748833125570,1.55570533,105110.0,105100.0,0.21145113]
[1748833125764,2.21669389,105110.0,105100.0,0.21145113]
[1748833125964,2.21669389,105110.0,105100.0,0.25569884]
[1748833126159,2.21669389,105110.0,105100.0,0.21145113]
[1748833126368,2.06855801,105110.0,105100.0,0.21145113]
[1748833126563,2.06855801,105110.0,105100.0,0.09565007]
[1748833126761,2.06855801,105110.0,105100.0,0.21145113]
[1748833126961,2.06855801,105110.0,105100.0,0.09565007]
[1748833127171,2.06855801,105110.0,105100.0,0.21145113]
[1748833127477,2.09818533,105110.0,105100.0,0.09565007]
[1748833128264,2.09818533,105110.0,105100.0,0.09565]
[1748833128565,2.13048533,105110.0,105100.0,0.09565]
[1748833128770,2.19198533,105110.0,105100.0,0.09565]
[1748833130670,2.19198533,105110.0,105100.0,0.03525]
[1748833131276,2.19209381,105110.0,105100.0,0.03525]
[1748833131971,2.19209381,105110.0,105100.0,0.00475]
[1748833132176,2.07618427,105110.0,105100.0,0.00475]
[1748833132377,2.19209381,105110.0,105100.0,0.00475]
[1748833133478,2.19234508,105110.0,105100.0,0.00475]
[1748833136275,3.27178508,105110.0,105100.0,0.00475]
[1748833147483,2.83250508,105110.0,105100.0,0.00475]
[1748833147789,3.27174508,105110.0,105100.0,0.00475]
[1748833149790,2.55014508,105110.0,105100.0,0.00475]
[1748833149980,3.27174508,105110.0,105100.0,0.00475]
[1748833151088,3.47914342,105110.0,105100.0,0.00475]
[1748833152382,3.33100754,105110.0,105100.0,0.00475]
[1748833153185,3.33100652,105110.0,105100.0,0.00475]
[1748833155492,3.47914649,105110.0,105100.0,0.00475]
[1748833155693,3.27174815,105110.0,105100.0,0.00475]
[1748833158188,3.15583963,105110.0,105100.0,0.00475]
[1748833158588,3.27174815,105110.0,105100.0,0.00475]
[1748833160688,1.50295963,105110.0,105100.0,0.12065852]
[1748833160986,1.50295963,105110.0,105100.0,0.14519526]
[1748833160987,1.6924284,105110.0,105100.0,0.14519526]
[1748833161196,1.7229284,105110.0,105100.0,0.14519526]
[1748833161589,1.60438818,105110.0,105100.0,0.14519526]
[1748833161899,1.7229284,105110.0,105100.0,0.04899526]
[1748833162098,1.72717794,105110.0,105100.0,0.04899526]
[1748833162693,1.72717794,105110.0,105100.0,0.04897764]
[1748833163200,1.72717794,105110.0,105100.0,0.00475]
[1748833163506,1.87531791,105110.0,105100.0,0.00475]
[1748833164591,1.72717794,105110.0,105100.0,0.00475]
[1748833166496,1.61126942,105110.0,105100.0,0.00475]
[1748833166699,1.62401794,105110.0,105100.0,0.09955]
[1748833166899,1.72717794,105110.0,105100.0,0.09955]
[1748833167398,1.7229284,105110.0,105100.0,0.09955]
[1748833167997,1.60701988,105110.0,105100.0,0.09955]
[1748833168297,1.7229284,105110.0,105100.0,0.09955]
[1748833170299,2.1621284,105110.0,105100.0,0.09955]
[1748833170490,1.7228884,105110.0,105100.0,0.09955]
[1748833171297,1.72713794,105110.0,105100.0,0.09955]
[1748833171695,1.72713794,105110.0,105100.0,0.21545852]
[1748833173206,1.7228884,105110.0,105100.0,0.21545852]
[1748833174297,1.72713794,105110.0,105100.0,0.21545852]
[1748833175400,1.7228884,105110.0,105100.0,0.21545852]
[1748833176398,1.72713794,105110.0,105100.0,0.21545852]
[1748833178307,1.7228884,105110.0,105100.0,0.21545852]
[1748833178503,1.7228884,105110.0,105100.0,0.15305852]
[1748833182002,1.0012884,105110.0,105100.0,0.15305852]
[1748833182208,1.7228884,105110.0,105100.0,0.15305852]
[1748833185007,2.1620884,105110.0,105100.0,0.15305852]
[1748833185205,2.1620884,105110.0,105100.0,0.34327662]
[1748833185410,2.1620884,105110.0,105100.0,0.15305852]
[1748833187111,2.1620884,105110.0,105100.0,0.03715]
[1748833187409,2.16633794,105110.0,105100.0,0.12065852]
[1748833187811,1.44473794,105110.0,105100.0,0.12065852]
[1748833188009,2.16633794,105110.0,105100.0,0.12065852]
[1748833194522,2.16633794,105110.0,105100.0,0.00475]
[1748833196224,2.31447791,105110.0,105100.0,0.00475]
[1748833197617,2.31022837,105110.0,105100.0,0.00475]
[1748833198710,2.19168815,105110.0,105100.0,0.00475]
[1748833200330,2.07577963,105110.0,105100.0,0.00475]
[1748833200711,1.52803389,105110.0,105100.0,0.42678514]
[1748833200916,0.24371612,105110.0,105100.0,1.83483634]
[1748833201113,0.12524213,105110.0,105100.0,1.83483634]
[1748833201425,0.19695178,105110.0,105100.0,3.3442947]
[1748833201612,0.19270224,105110.0,105100.0,3.3442947]
[1748833201925,0.19270224,105110.0,105100.0,3.28773634]
[1748833202425,0.19270224,105110.0,105100.0,2.8946502]
[1748833202623,0.19270224,105110.0,105100.0,2.95646724]
[1748833202824,0.19270224,105110.0,105100.0,2.74541473]
[1748833203021,0.86663076,105110.0,105100.0,1.79321641]
[1748833203223,0.86663076,105110.0,105100.0,0.04898458]
[1748833203432,1.23663076,105110.0,105100.0,0.1648931]
[1748833203816,1.00663076,105110.0,105100.0,0.1648931]
[1748833204011,1.18663076,105110.0,105100.0,0.1648931]
[1748833204226,1.18663076,105110.0,105100.0,0.04898458]
[1748833205311,1.18662571,105110.0,105100.0,0.04898458]
[1748833205511,1.30511576,105110.0,105100.0,0.04898458]
[1748833205928,1.18921229,105110.0,105100.0,0.04898458]
[1748833206115,1.30511576,105110.0,105100.0,0.04898458]
[1748833206627,1.18921229,105110.0,105100.0,0.04898458]
[1748833207727,1.2372108,105110.0,105100.0,0.04898458]
[1748833208728,1.11872075,105110.0,105100.0,0.04898458]
[1748833209522,1.11872075,105110.0,105100.0,0.35898458]
[1748833209919,1.23462422,105110.0,105100.0,0.35898458]
[1748833211525,1.35311427,105110.0,105100.0,0.35898458]
[1748833212531,1.71391427,105110.0,105100.0,0.35898458]
[1748833213828,1.23001229,105110.0,105100.0,0.66510635]
[1748833214033,1.23152224,105110.0,105100.0,0.66510635]
[1748833214225,1.67064224,105110.0,105100.0,0.75930635]
[1748833214730,1.55064224,105110.0,105100.0,0.80353461]
[1748833214925,1.56064224,105110.0,105100.0,0.80353461]
[1748833215428,1.01840224,105110.0,105100.0,2.30353461]
[1748833215621,0.91430274,105110.0,105100.0,2.30353461]
[1748833217225,0.91430274,105110.0,105100.0,2.74265461]
[1748833218841,0.91430274,105110.0,105100.0,2.69842635]
[1748833219335,0.91430274,105110.0,105100.0,2.69838635]
[1748833219537,0.97620274,105110.0,105100.0,2.69838635]
[1748833220235,0.97620274,105110.0,105100.0,2.74259773]
[1748833222225,0.97620274,105110.0,105100.0,2.85339773]
[1748833223633,0.97620274,105110.0,105100.0,2.73749426]
[1748833223926,0.97620274,105110.0,105100.0,2.85339773]
[1748833224631,0.97620274,105110.0,105100.0,2.20421426]
[1748833224936,0.97620274,105110.0,105100.0,2.16000288]
[1748833226140,0.97620274,105110.0,105100.0,0.66000288]
[1748833226342,1.15210621,105110.0,105100.0,0.66000288]
[1748833226530,1.40210621,105110.0,105100.0,0.66000288]
[1748833227035,1.40210621,105110.0,105100.0,0.35898458]
[1748833227344,1.40210621,105110.0,105100.0,0.17898458]
[1748833228145,1.52059626,105110.0,105100.0,0.17898458]
[1748833228631,1.40210621,105110.0,105100.0,0.17898458]
[1748833229437,1.56900435,105110.0,105100.0,0.17898458]
[1748833233137,0.84740435,105110.0,105100.0,0.17898458]
[1748833233336,1.56900435,105110.0,105100.0,0.17898458]
[1748833237650,1.60150435,105110.0,105100.0,0.04898458]
[1748833239750,0.87990435,105110.0,105100.0,0.04898458]
[1748833239942,1.60150435,105110.0,105100.0,0.04898458]
[1748833240651,1.92468088,105110.0,105100.0,0.04898458]
[1748833240843,2.04058435,105110.0,105100.0,0.04898458]
[1748833247158,2.07023427,105110.0,105100.0,0.04898458]
[1748833249751,2.17331427,105110.0,105100.0,0.04898458]
[1748833251163,1.63115427,105110.0,105100.0,0.04898458]
[1748833251350,2.17331427,105110.0,105100.0,0.04898458]
[1748833252651,2.0251743,105110.0,105100.0,0.04898458]
[1748833253056,2.23257264,105110.0,105100.0,0.04898458]
[1748833254160,3.31201264,105110.0,105100.0,0.04898458]
[1748833254657,3.45977726,105110.0,105100.0,0.04898458]
[1748833254853,3.25237892,105110.0,105100.0,0.04898458]
[1748833255249,3.31201264,105110.0,105100.0,0.04898458]
[1748833257956,3.45982991,105110.0,105100.0,0.04898458]
[1748833259560,3.34392644,105110.0,105100.0,0.04898458]
[1748833259862,3.45982991,105110.0,105100.0,0.04898458]
[1748833264271,3.31201264,105110.0,105100.0,0.04898458]
[1748833265564,2.65394917,105110.0,105100.0,0.04898458]
[1748833265770,3.45985491,105110.0,105100.0,0.04898458]
[1748833266063,2.80175144,105110.0,105100.0,0.04898458]
[1748833266266,2.7049331,105110.0,105100.0,0.44980635]
[1748833266467,3.08290089,105110.0,105100.0,0.44980635]
[1748833266668,3.08290089,105110.0,105100.0,0.14368458]
[1748833266965,3.08290089,105110.0,105100.0,0.33390288]
[1748833267361,2.54070089,105110.0,105100.0,0.33390288]
[1748833267556,2.54070089,105110.0,105100.0,0.45980635]
[1748833267557,2.5650728,105110.0,105100.0,0.45980635]
[1748833267762,2.3250728,105110.0,105100.0,0.45980635]
[1748833268164,2.20682274,105110.0,105100.0,0.45980635]
[1748833269064,2.20682274,105110.0,105100.0,0.34390288]
[1748833269769,2.20682274,105110.0,105100.0,0.38815035]
[1748833270472,2.45682274,105110.0,105100.0,0.34390288]
[1748833271069,2.45682274,105110.0,105100.0,0.38814572]
[1748833271262,2.19682274,105110.0,105100.0,0.38814572]
[1748833271465,2.09374274,105110.0,105100.0,0.50404919]
[1748833271669,2.09682274,105110.0,105100.0,0.50404919]
[1748833272176,1.01738274,105110.0,105100.0,0.50404919]
[1748833272477,1.01738274,105110.0,105100.0,0.70404919]
[1748833272976,1.01738274,105110.0,105100.0,0.58814572]
[1748833273176,1.01738274,105110.0,105100.0,0.50404919]
[1748833273878,1.12738274,105110.0,105100.0,0.50404919]
[1748833277574,1.12738274,105110.0,105100.0,0.51354597]
[1748833277978,1.12738274,105110.0,105100.0,0.50404919]
[1748833278671,1.12738274,105110.0,105100.0,0.45980635]
[1748833279068,1.12738274,105110.0,105100.0,0.74399084]
[1748833281175,1.12738274,105110.0,105100.0,0.69980635]
[1748833281374,1.12738274,105110.0,105100.0,0.81060635]
[1748833281780,1.12738274,105110.0,105100.0,0.60060635]
[1748833282067,1.18888274,105110.0,105100.0,0.60060635]
[1748833284884,1.21998274,105110.0,105100.0,0.64477866]
[1748833287086,1.34588621,105110.0,105100.0,0.46477519]
[1748833287384,1.56588621,105110.0,105100.0,0.35397519]
[1748833287584,1.56588621,105110.0,105100.0,0.30337519]
[1748833287785,1.56588621,105110.0,105100.0,0.04898458]
[1748833288380,1.73094401,105110.0,105100.0,0.04898458]
[1748833289485,1.87874628,105110.0,105100.0,0.04898458]
[1748833290175,1.76049622,105110.0,105100.0,0.04898458]
[1748833290983,1.76049622,105110.0,105100.0,0.06325458]
[1748833294889,1.64459275,105110.0,105100.0,0.06325458]
[1748833295090,1.76049622,105110.0,105100.0,0.06325458]
[1748833298381,1.87864683,105110.0,105100.0,0.06325458]
[1748833298591,1.73084456,105110.0,105100.0,0.06325458]
[1748833299187,1.87864683,105110.0,105100.0,0.06325458]
[1748833299387,1.65966336,105110.0,105100.0,0.06325458]
[1748833299594,2.20174336,105110.0,105100.0,0.06325458]
[1748833299891,2.16984456,105110.0,105100.0,0.06325458]
[1748833301389,2.05394109,105110.0,105100.0,0.06325458]
[1748833301585,2.16984456,105110.0,105100.0,0.06325458]
[1748833307091,1.61490109,105110.0,105100.0,0.06325458]
[1748833307295,2.16984456,105110.0,105100.0,0.06325458]
[1748833308396,2.31764683,105110.0,105100.0,0.06325458]
[1748833312101,2.19949622,105110.0,105100.0,0.06325458]
[1748833313399,2.19950504,105110.0,105100.0,0.06325458]
[1748833322813,2.31541733,105110.0,105100.0,0.06325458]
[1748833323399,2.16761506,105110.0,105100.0,0.06325458]
[1748833324505,2.3750134,105110.0,105100.0,0.06325458]
[1748833325009,2.4701574,105110.0,105100.0,0.05850458]
[1748833325314,2.4701574,105110.0,105100.0,0.0521]
[1748833325511,2.37867135,105110.0,105100.0,0.0521]
[1748833326207,2.37867135,105110.0,105100.0,1e-07]
[1748833326410,0.1902546,105080.0,105070.0,0.00209384]
[1748833326607,1.73980689,105080.0,105070.0,0.00209384]
[1748833326915,1.98615816,105080.0,105070.0,0.11800613]
[1748833327614,1.98615816,105080.0,105070.0,0.11900613]
[1748833328214,2.10451456,105080.0,105070.0,0.11900613]
[1748833328805,2.10451456,105080.0,105070.0,0.00309384]
[1748833329008,2.33733914,105080.0,105070.0,0.00409384]
[1748833329317,2.48528464,105080.0,105070.0,0.00409384]
[1748833329616,2.36937235,105080.0,105070.0,0.00409384]
[1748833330419,2.37237235,105080.0,105070.0,0.00409384]
[1748833330919,2.37211095,105080.0,105070.0,0.00409384]
[1748833331216,2.25628311,105080.0,105070.0,0.00409384]
[1748833331406,2.25553438,105080.0,105070.0,0.00309384]
[1748833331613,2.11058888,105080.0,105070.0,0.00309384]
[1748833332009,1.99459214,105080.0,105070.0,0.00309384]
[1748833332212,2.11058888,105080.0,105070.0,0.00309384]
[1748833333414,1.99459214,105080.0,105070.0,0.00309384]
[1748833333610,2.11058888,105080.0,105070.0,0.00309384]
[1748833335711,1.56854888,105080.0,105070.0,0.00309384]
[1748833335919,2.11106888,105080.0,105070.0,0.00309384]
[1748833338512,2.25901438,105080.0,105070.0,0.00309384]
[1748833339615,2.11106888,105080.0,105070.0,0.00309384]
[1748833339816,2.25901438,105080.0,105070.0,0.00309384]
[1748833340610,1.99507214,105080.0,105070.0,0.00309384]
[1748833340926,2.11106888,105080.0,105070.0,0.00784384]
[1748833343124,2.14091938,105080.0,105070.0,0.00784384]
[1748833344012,1.70143938,105080.0,105070.0,0.00784384]
[1748833344221,2.14323938,105080.0,105070.0,0.00784384]
[1748833345021,2.14515957,105080.0,105070.0,0.00784384]
[1748833345224,2.26115631,105080.0,105070.0,0.00784384]
[1748833347525,2.11321081,105080.0,105070.0,0.00784384]
[1748833348517,1.99721407,105080.0,105070.0,0.00784384]
[1748833348825,2.11321081,105080.0,105070.0,0.00784384]
[1748833351221,2.22918543,105080.0,105070.0,0.00784384]
[1748833351422,2.22870543,105080.0,105070.0,0.00784384]
[1748833351725,1.68434543,105080.0,105070.0,0.00784384]
[1748833351925,2.11422724,105080.0,105070.0,0.00784384]
[1748833352226,1.82077274,105080.0,105070.0,0.00784384]
[1748833352527,2.11414724,105080.0,105070.0,0.12382952]
[1748833352830,2.11414724,105080.0,105070.0,0.10054384]
[1748833354031,2.26209274,105080.0,105070.0,0.10054384]
[1748833354632,2.14398832,105080.0,105070.0,0.10054384]
[1748833355128,2.26204683,105080.0,105070.0,0.21652952]
[1748833355429,2.11410133,105080.0,105070.0,0.10054384]
[1748833355932,2.14378832,105080.0,105070.0,0.10054384]
[1748833356925,2.259774,105080.0,105070.0,4e-08]
[1748833357124,0.1903087,105050.0,105040.0,0.15063433]
[1748833357331,0.1903087,105050.0,105040.0,0.56636874]
[1748833357332,1.93366251,105050.0,105040.0,0.56636874]
[1748833357632,1.99626251,105050.0,105040.0,0.56636874]
[1748833358233,1.99726251,105050.0,105040.0,0.56736874]
[1748833359124,1.55183627,105050.0,105040.0,0.40883317]
[1748833359324,1.89183627,105050.0,105040.0,0.40883317]
[1748833360136,1.89183627,105050.0,105040.0,0.45288861]
[1748833361536,2.00784881,105050.0,105040.0,0.45288861]
[1748833361836,2.00784881,105050.0,105040.0,0.44559861]
[1748833363329,1.00567627,105050.0,105040.0,0.63592541]
[1748833363537,1.66744881,105050.0,105040.0,0.63592541]
[1748833364437,1.66770008,105050.0,105040.0,0.63592541]
[1748833364735,1.66770008,105050.0,105040.0,0.59920997]
[1748833365034,1.66754008,105050.0,105040.0,0.59920997]
[1748833365235,2.0659467,105050.0,105040.0,0.59920997]
[1748833365423,1.7159467,105050.0,105040.0,0.59920997]
[1748833365825,2.0459467,105050.0,105040.0,0.37678317]
[1748833366137,2.0459467,105050.0,105040.0,0.42082661]
[1748833366637,2.0459467,105050.0,105040.0,0.61115351]
[1748833367131,2.0459467,105050.0,105040.0,0.42082661]
[1748833367327,2.0459467,105050.0,105040.0,0.18082661]
[1748833367731,2.0766467,105050.0,105040.0,0.18082661]
[1748833368136,2.0766467,105050.0,105040.0,0.11622661]
[1748833368341,2.0766467,105050.0,105040.0,0.01218317]
[1748833369837,2.1950071,105050.0,105040.0,0.01218317]
[1748833371244,1.63767456,105050.0,105040.0,0.01218317]
[1748833371539,2.1953671,105050.0,105040.0,0.01218317]
[1748833371737,2.0770067,105050.0,105040.0,0.01218317]
[1748833373336,1.96099416,105050.0,105040.0,0.01218317]
[1748833373643,2.0770067,105050.0,105040.0,0.01218317]
[1748833374834,2.1953671,105050.0,105040.0,0.01218317]
[1748833377142,2.0770067,105050.0,105040.0,0.01218317]
[1748833377741,2.0770067,105050.0,105040.0,0.05618731]
[1748833378547,1.96099416,105050.0,105040.0,0.05618731]
[1748833378745,2.0770067,105050.0,105040.0,0.05618731]
[1748833381043,2.0770067,105050.0,105040.0,0.05618793]
[1748833381240,2.1953671,105050.0,105040.0,0.01218317]
[1748833385956,1.5310467,105050.0,105040.0,0.01218317]
[1748833386157,2.0772867,105050.0,105040.0,0.01218317]
[1748833388857,2.22509368,105050.0,105040.0,0.01218317]
[1748833389057,1.50349368,105050.0,105040.0,0.01218317]
[1748833389254,2.22511599,105050.0,105040.0,0.01218317]
[1748833389959,2.07730901,105050.0,105040.0,0.01218317]
[1748833391352,2.22511599,105050.0,105040.0,0.01218317]
[1748833393761,2.10908114,105050.0,105040.0,0.01218317]
[1748833394059,2.22511599,105050.0,105040.0,0.01218317]
[1748833399761,2.10952114,105050.0,105040.0,0.01218317]
[1748833400063,2.22555599,105050.0,105040.0,0.10588317]
[1748833400259,2.22575599,105050.0,105040.0,0.10588317]
[1748833400860,2.22575599,105050.0,105040.0,0.07438317]
[1748833401061,2.22575599,105050.0,105040.0,0.01218317]
[1748833408070,1.78335599,105050.0,105040.0,0.01218317]
[1748833408369,2.22583599,105050.0,105040.0,0.01218317]
[1748833409961,2.22583599,105050.0,105040.0,0.05628229]
[1748833409962,2.19645199,105050.0,105040.0,0.05628229]
[1748833411272,2.19406386,105050.0,105040.0,0.01218317]
[1748833411471,2.34187084,105050.0,105040.0,0.01218317]
[1748833411766,2.40118756,105050.0,105040.0,0.01218317]
[1748833412567,2.40218756,105050.0,105040.0,0.01118317]
[1748833413374,2.55015303,105050.0,105040.0,0.01118317]
[1748833414268,2.34302933,105050.0,105040.0,0.01118317]
[1748833414571,2.34402933,105050.0,105040.0,0.01018317]
[1748833414774,2.40318756,105050.0,105040.0,0.01018317]
[1748833415371,2.28715271,105050.0,105040.0,0.01018317]
[1748833416974,2.43505545,105050.0,105040.0,0.01018317]
[1748833417174,2.22793175,105050.0,105040.0,0.01018317]
[1748833417375,2.22769175,105050.0,105040.0,0.01018317]
[1748833417570,2.43481545,105050.0,105040.0,0.01018317]
[1748833417873,2.22769175,105050.0,105040.0,0.01018317]
[1748833429074,2.28691271,105050.0,105040.0,0.01018317]
[1748833429882,1.84495271,105050.0,105040.0,0.01018317]
[1748833430089,2.28703271,105050.0,105040.0,0.01018317]
[1748833432383,2.40306756,105050.0,105040.0,0.00597895]
[1748833432687,2.28703271,105050.0,105040.0,0.00576]
[1748833433988,2.19594386,105050.0,105040.0,0.00576]
[1748833434188,2.40297329,105050.0,105040.0,0.00576]
[1748833435181,1.56533844,105050.0,105040.0,0.00576]
[1748833435384,2.28693844,105050.0,105040.0,0.00576]
[1748833436692,2.40297329,105050.0,105040.0,0.00576]
[1748833438789,1.68137329,105050.0,105040.0,0.00576]
[1748833439090,2.34388176,105050.0,105040.0,0.00576]
[1748833439292,2.22784691,105050.0,105040.0,0.00576]
[1748833441281,2.11181206,105050.0,105040.0,0.00576]
[1748833441485,2.22784691,105050.0,105040.0,0.00576]
[1748833441687,2.11181206,105050.0,105040.0,0.00576]
[1748833441888,2.22784691,105050.0,105040.0,0.00576]
[1748833443690,1.56497206,105050.0,105040.0,0.00576]
[1748833443991,2.22856691,105050.0,105040.0,0.00576]
[1748833444193,2.22856691,105050.0,105040.0,0.06676]
[1748833444689,2.08062901,105050.0,105040.0,0.06676]
[1748833444891,2.28765844,105050.0,105040.0,0.06676]
[1748833445091,2.43570765,105050.0,105040.0,0.06676]
[1748833445289,2.22867822,105050.0,105040.0,0.06676]
[1748833445592,2.22867822,105050.0,105040.0,0.00576]
[1748833445908,1.68111822,105050.0,105040.0,0.00576]
[1748833446083,2.22843822,105050.0,105040.0,0.00576]
[1748833447383,1.68111822,105050.0,105040.0,0.00576]
[1748833447584,2.22823822,105050.0,105040.0,0.00576]
[1748833448888,1.68111822,105050.0,105040.0,0.00576]
[1748833449089,2.28701844,105050.0,105040.0,0.00576]
[1748833450387,2.40305329,105050.0,105040.0,0.00576]
[1748833450585,2.55110796,105050.0,105040.0,0.00576]
[1748833450796,2.22804368,105050.0,105040.0,0.00576]
[1748833451790,2.34407853,105050.0,105040.0,0.00576]
[1748833454881,1.79715853,105050.0,105040.0,0.00576]
[1748833455086,2.22804368,105050.0,105040.0,0.00576]
[1748833455688,2.07998901,105050.0,105040.0,0.00576]
[1748833455888,2.28701844,105050.0,105040.0,0.00576]
[1748833456685,2.40305329,105050.0,105040.0,0.00576]
[1748833468000,2.17098359,105050.0,105040.0,0.00576]
[1748833468197,2.40305329,105050.0,105040.0,0.00576]
[1748833468996,1.96113329,105050.0,105040.0,0.00576]
[1748833469197,2.40301329,105050.0,105040.0,0.00576]
[1748833471504,2.22775354,105050.0,105040.0,0.00576]
[1748833474199,2.34378839,105050.0,105040.0,0.00576]
[1748833475202,2.11171869,105050.0,105040.0,0.00576]
[1748833475400,2.34378839,105050.0,105040.0,0.00576]
[1748833476700,2.19574386,105050.0,105040.0,0.00576]
[1748833476900,2.40277329,105050.0,105040.0,0.00576]
[1748833478205,2.19574386,105050.0,105040.0,0.00576]
[1748833478703,1.47418549,105050.0,105040.0,0.00576]
[1748833479011,2.19578549,105050.0,105040.0,0.00576]
[1748833481010,1.96371579,105050.0,105040.0,0.00576]
[1748833481211,2.19578549,105050.0,105040.0,0.00576]
[1748833481812,2.19578549,105050.0,105040.0,0.00349956]
[1748833482408,2.40307169,105050.0,105040.0,0.00349956]
[1748833482606,2.19578549,105050.0,105040.0,0.00349956]
[1748833483007,2.19578549,105050.0,105020.0,0.02030044]
[1748833483008,0.1903448,105030.0,105020.0,0.02030044]
[1748833483208,0.1903448,105030.0,105010.0,0.00209504]
[1748833483209,0.56690489,105020.0,105010.0,0.00675504]
[1748833483401,2.81192071,105020.0,105010.0,0.00675504]
[1748833483601,3.01946218,105020.0,105010.0,0.00675504]
[1748833485017,3.02446218,105020.0,105010.0,0.00675504]
[1748833486209,2.47406743,105020.0,105010.0,0.00675504]
[1748833486427,3.36861198,105020.0,105010.0,0.00675504]
[1748833486710,3.36861198,105020.0,105010.0,0.00209504]
[1748833487110,3.51632447,105020.0,105010.0,0.00209504]
[1748833488104,3.51636447,105020.0,105010.0,0.00209504]
[1748833488320,3.36865198,105020.0,105010.0,0.00209504]
[1748833489116,3.48669665,105020.0,105010.0,0.00209504]
[1748833489315,3.48694792,105020.0,105010.0,0.00209504]
[1748833491014,2.59236337,105020.0,105010.0,0.00209504]
[1748833491218,3.48674792,105020.0,105010.0,0.00209504]
[1748833496627,3.48699919,105020.0,105010.0,0.00209504]
[1748833498338,3.51666701,105020.0,105010.0,0.00209504]
[1748833498826,3.63460038,105020.0,105010.0,0.00209504]
[1748833499933,3.16856246,105020.0,105010.0,0.00209504]
[1748833500133,3.51666701,105020.0,105010.0,0.00209504]
[1748833501529,3.36895452,105020.0,105010.0,0.00209504]
[1748833503539,3.16856246,105020.0,105010.0,0.00209504]
[1748833503736,3.48690422,105020.0,105010.0,0.00209504]
[1748833505444,3.37086937,105020.0,105010.0,0.00209504]
[1748833505747,3.51858186,105020.0,105010.0,0.00209504]
[1748833506038,3.40063216,105020.0,105010.0,0.00209504]
[1748833506943,3.40087216,105020.0,105010.0,0.00209504]
[1748833509147,3.40055216,105020.0,105010.0,0.00209504]
[1748833509547,3.60784236,105020.0,105010.0,0.00209504]
[1748833510148,3.60776236,105020.0,105010.0,0.00209504]
[1748833510347,3.46004987,105020.0,105010.0,0.00209504]
[1748833511348,3.22798017,105020.0,105010.0,0.00209504]
[1748833511548,3.46004987,105020.0,105010.0,0.00092158]
[1748833512747,3.57608472,105020.0,105010.0,0.00092158]
[1748833513049,3.57588472,105020.0,105010.0,0.00092158]
[1748833513838,3.36859452,105020.0,105010.0,0.00092158]
[1748833514044,3.51662088,105020.0,105010.0,0.00092158]
[1748833516048,0.55025952,105010.0,105000.0,0.0185]
[1748833516249,0.1903992,105000.0,104990.0,0.0047]
[1748833516456,1.47849216,105000.0,104990.0,0.0047]
[1748833516649,1.24667373,105000.0,104990.0,0.0047]
[1748833516951,1.47874343,105000.0,104990.0,0.0047]
[1748833518557,1.332806,105000.0,104990.0,0.0047]
[1748833518749,1.5400962,105000.0,104990.0,0.0047]
[1748833518952,1.68997155,105000.0,104990.0,0.0047]
[1748833519257,1.48268135,105000.0,104990.0,0.0047]
[1748833520057,1.92596135,105000.0,104990.0,0.0047]
[1748833520356,0.1904172,104990.0,104980.0,0.09839564]
[1748833520556,1.04245459,104990.0,104980.0,0.09839564]
[1748833520756,1.16072495,104990.0,104980.0,0.09839564]
[1748833521158,1.70812495,104990.0,104980.0,0.09839564]
[1748833521656,1.5931301,104990.0,104980.0,0.09839564]
[1748833521845,1.70916495,104990.0,104980.0,0.09839564]
[1748833522255,1.70941622,104990.0,104980.0,0.09839564]
[1748833522759,1.74002121,104990.0,104980.0,0.09839564]
[1748833522959,1.77222121,104990.0,104980.0,0.09839564]
[1748833523757,1.83045273,104990.0,104980.0,0.09839564]
[1748833523957,1.71441788,104990.0,104980.0,0.09839564]
[1748833524153,1.83045273,104990.0,104980.0,0.10328564]
[1748833524548,1.80082539,104990.0,104980.0,0.10328564]
[1748833525948,1.25338539,104990.0,104980.0,0.10328564]
[1748833526153,1.39396539,104990.0,104980.0,0.27932049]
[1748833526749,1.39396539,104990.0,104980.0,0.21932049]
[1748833526947,1.39396539,104990.0,104980.0,0.10328564]
[1748833527564,1.39396539,104990.0,104980.0,0.10804564]
[1748833527565,1.45796539,104990.0,104980.0,0.10804564]
[1748833527863,1.55971738,104990.0,104980.0,0.10804564]
[1748833528055,1.59241738,104990.0,104980.0,0.10804564]
[1748833528457,1.59241738,104990.0,104980.0,0.15179561]
[1748833529059,1.68113032,104990.0,104980.0,0.15179561]
[1748833529265,1.68125045,104990.0,104980.0,0.15179561]
[1748833529661,1.68150172,104990.0,104980.0,0.15179561]
[1748833529862,1.59278878,104990.0,104980.0,0.15179791]
[1748833530062,1.01786917,104990.0,104980.0,0.08819791]
[1748833530357,0.1904716,104960.0,104950.0,0.061436]
[1748833530565,3.03865483,104960.0,104950.0,0.061436]
[1748833530754,2.46870239,104960.0,104950.0,0.061436]
[1748833530957,3.22419092,104960.0,104950.0,0.061436]
[1748833531152,3.01934239,104960.0,104950.0,0.061436]
[1748833531356,3.13549737,104960.0,104950.0,0.061436]
[1748833531957,2.58585737,104960.0,104950.0,0.061436]
[1748833532157,2.70384501,104960.0,104950.0,0.061436]
[1748833532453,2.69373724,104960.0,104950.0,0.061436]
[1748833532761,3.25541222,104960.0,104950.0,0.098396]
[1748833532953,3.25577222,104960.0,104950.0,0.129296]
[1748833533158,3.34428073,104960.0,104950.0,0.160896]
[1748833533360,3.22629309,104960.0,104950.0,0.160896]
[1748833533766,3.22661309,104960.0,104950.0,0.160896]
[1748833534064,3.22661309,104960.0,104950.0,0.066196]
[1748833534267,2.67525309,104960.0,104950.0,0.066196]